bitfinex/quotes_BTCUSD_20251207
["timestamp","ask_amount","ask_price","bid_price","bid_amount"]
[1765116322359,0.00039414,89018.0,89017.0,0.10257178]
[1765116322360,0.01039414,89018.0,89017.0,0.10257178]
[1765116322700,0.01039414,89018.0,89017.0,0.16509477]
[1765116323315,0.01039414,89018.0,89017.0,0.48809477]
[1765116324694,0.00039414,89018.0,89017.0,0.48609477]
[1765116325112,0.00639414,89018.0,89017.0,0.48709477]
[1765116325538,0.00639414,89018.0,89017.0,0.48809477]
[1765116326093,0.00639414,89018.0,89017.0,0.48609477]
[1765116326094,0.00039414,89018.0,89017.0,0.48609477]
[1765116326301,0.00439414,89018.0,89017.0,0.48909477]
[1765116328310,0.00439414,89018.0,89017.0,0.50685477]
[1765116331216,0.00439414,89018.0,89017.0,0.48909477]
[1765116331426,0.00439414,89018.0,89017.0,0.50685477]
[1765116337528,0.00439414,89018.0,89017.0,0.48455477]
[1765116337731,0.00439414,89018.0,89017.0,0.50685477]
[1765116338808,0.00439414,89018.0,89017.0,1.57892777]
[1765116339230,0.00439414,89018.0,89017.0,1.29667277]
[1765116339581,0.03993775,89065.0,89030.0,1.02533836]
[1765116339783,0.01122762,89066.0,89030.0,1.0432168]
[1765116339966,0.01122687,89072.0,89068.0,0.01122737]
[1765116340165,0.00161287,89072.0,89069.0,0.25353226]
[1765116340650,0.00118696,89070.0,89069.0,0.25353226]
[1765116341226,0.05067983,89070.0,89069.0,0.01776]
[1765116341996,0.06267983,89070.0,89069.0,0.01976]
[1765116344233,0.06367983,89070.0,89069.0,0.01976]
[1765116345506,0.06367983,89070.0,89069.0,0.08679798]
[1765116345739,0.06367983,89070.0,89069.0,0.01976]
[1765116347665,0.06367983,89070.0,89069.0,0.002]
[1765116349937,0.01579983,89070.0,89069.0,0.002]
[1765116350160,0.03620983,89070.0,89069.0,0.002]
[1765116350364,0.01579983,89070.0,89069.0,0.002]
[1765116350565,0.01579983,89070.0,89069.0,0.06903798]
[1765116351142,0.01418696,89070.0,89069.0,0.06903798]
[1765116351373,0.01418696,89070.0,89069.0,0.09133798]
[1765116353900,0.01418696,89070.0,89069.0,0.06903798]
[1765116354106,0.01418696,89070.0,89069.0,0.13156097]
[1765116355147,0.01418696,89070.0,89069.0,0.06903798]
[1765116355561,0.06292696,89070.0,89069.0,0.06903798]
[1765116355983,0.03292696,89070.0,89069.0,0.06903798]
[1765116356832,0.06453983,89070.0,89069.0,0.002]
[1765116357116,0.06453983,89070.0,89069.0,0.06903798]
[1765116357936,0.07494375,89070.0,89069.0,0.06903798]
[1765116361107,0.07494375,89070.0,89069.0,0.002]
[1765116361521,0.02620375,89070.0,89069.0,0.002]
[1765116361895,0.04494375,89070.0,89069.0,0.002]
[1765116362276,0.03294375,89070.0,89068.0,0.2245464]
[1765116362481,0.02454392,89069.0,89068.0,0.2245464]
[1765116362950,0.02454392,89069.0,89067.0,0.0112275]
[1765116363154,0.22455005,89067.0,89065.0,0.01776]
[1765116363376,0.029154,89066.0,89065.0,0.01776]
[1765116363574,0.029154,89066.0,89056.0,0.06703798]
[1765116363575,0.059154,89066.0,89056.0,0.06703798]
[1765116363773,0.059154,89066.0,89047.0,0.323]
[1765116363774,0.23582285,89050.0,89047.0,0.323]
[1765116363893,0.03288,89044.0,89042.0,0.06703798]
[1765116364090,0.01874,89043.0,89042.0,0.06703798]
[1765116364312,0.04874,89043.0,89042.0,0.08479798]
[1765116365232,0.05074,89043.0,89042.0,0.08579798]
[1765116365833,0.05074,89043.0,89042.0,0.01876]
[1765116366067,0.002,89043.0,89042.0,0.01876]
[1765116366448,0.004,89043.0,89042.0,0.01876]
[1765116366964,0.05274,89043.0,89042.0,0.01876]
[1765116369534,0.05274,89043.0,89042.0,0.001]
[1765116370407,0.07494398,89043.0,89042.0,0.001]
[1765116371014,0.01123128,89037.0,89034.0,0.01776]
[1765116371249,0.24337076,89035.0,89034.0,0.01787844]
[1765116371618,0.27181076,89035.0,89034.0,0.01787844]
[1765116372283,0.27181076,89035.0,89034.0,0.00011844]
[1765116372487,0.27581076,89035.0,89034.0,0.01511844]
[1765116373047,0.27681076,89035.0,89034.0,0.01511844]
[1765116374957,0.27842363,89035.0,89034.0,0.01511844]
[1765116381366,0.30062761,89035.0,89034.0,0.01511844]
[1765116381686,0.27842363,89035.0,89034.0,0.01511844]
[1765116382160,0.30062761,89035.0,89034.0,0.01511844]
[1765116382865,0.29962761,89035.0,89034.0,0.01511844]
[1765116383211,0.29562761,89035.0,89034.0,0.00011844]
[1765116383649,0.29962761,89035.0,89034.0,0.01711844]
[1765116383819,0.29562761,89035.0,89034.0,0.00011844]
[1765116384219,0.30162761,89035.0,89034.0,0.01511844]
[1765116384844,0.29962761,89035.0,89034.0,0.01511844]
[1765116385595,0.29562761,89035.0,89034.0,0.00011844]
[1765116385902,0.30062761,89035.0,89034.0,0.01011844]
[1765116386165,0.27842363,89035.0,89034.0,0.01011844]
[1765116386377,0.38050917,89035.0,89034.0,0.01011844]
[1765116387851,0.38050917,89035.0,89003.0,0.323]
[1765116387852,0.01123519,89006.0,89003.0,0.323]
[1765116388051,0.03399,89004.0,89003.0,0.32339414]
[1765116388264,0.03399,89004.0,89003.0,0.00039414]
[1765116388471,0.06243,89004.0,89003.0,0.00039414]
[1765116388679,0.08463398,89004.0,89003.0,0.00039414]
[1765116388894,0.08463398,89004.0,89003.0,0.00139414]
[1765116389308,0.08463398,89004.0,89003.0,0.01139414]
[1765116389517,0.08463398,89004.0,89003.0,0.00139414]
[1765116389723,0.08463398,89004.0,89003.0,0.01139414]
[1765116389929,0.08863398,89004.0,89003.0,0.01139414]
[1765116390467,0.08863398,89004.0,89003.0,0.01039414]
[1765116390666,0.09063398,89004.0,89003.0,0.01039414]
[1765116391252,0.17310246,89004.0,89003.0,0.01039414]
[1765116392003,0.16710246,89004.0,89003.0,0.00039414]
[1765116392818,0.17110246,89004.0,89003.0,0.00039414]
[1765116393038,0.16710246,89004.0,89003.0,0.00039414]
[1765116393484,0.17410246,89004.0,89003.0,0.00039414]
[1765116393951,0.17210246,89004.0,89003.0,0.00039414]
[1765116395407,0.08963398,89004.0,89003.0,0.00039414]
[1765116395825,0.11218623,89004.0,89003.0,0.00039414]
[1765116395971,0.08998225,89004.0,89003.0,0.00039414]
[1765116396174,0.12257631,89004.0,89003.0,0.00039414]
[1765116397332,0.11857631,89004.0,89003.0,0.00039414]
[1765116397549,0.20383903,89004.0,89003.0,0.00039414]
[1765116398567,0.20383903,89004.0,88963.0,0.22481245]
[1765116398568,0.22479774,88969.0,88963.0,0.22481059]
[1765116398862,0.03399,88967.0,88966.0,0.06712237]
[1765116399117,0.06243,88967.0,88966.0,0.06712237]
[1765116399922,0.06243,88967.0,88966.0,0.06812237]
[1765116400278,0.06843,88967.0,88966.0,0.06812237]
[1765116400486,0.06843,88967.0,88966.0,0.06712237]
[1765116400932,0.06843,88967.0,88966.0,0.06812237]
[1765116401332,0.06843,88967.0,88966.0,0.06712237]
[1765116401729,0.06243,88967.0,88966.0,0.06712237]
[1765116402356,0.06743,88967.0,88966.0,0.06712237]
[1765116402739,0.06943,88967.0,88966.0,0.06712237]
[1765116404411,0.07104287,88967.0,88966.0,8.439e-05]
[1765116404761,0.07104287,88967.0,88966.0,0.00112065]
[1765116406517,0.06943,88967.0,88966.0,0.00112065]
[1765116406735,0.007,88967.0,88966.0,0.00112065]
[1765116407617,0.005,88967.0,88966.0,0.00112065]
[1765116408127,0.01501,88976.0,88973.0,0.01123936]
[1765116408483,0.01501,88976.0,88974.0,0.22478476]
[1765116409011,0.01501,88976.0,88975.0,0.01776]
[1765116409664,0.02001,88976.0,88975.0,0.01776]
[1765116409899,0.01501,88976.0,88975.0,0.01776]
[1765116410978,0.01501,88976.0,88975.0,0.01876]
[1765116411263,0.01801,88976.0,88975.0,0.02176]
[1765116412521,0.003,88976.0,88975.0,0.04406]
[1765116412987,0.02242,88976.0,88975.0,0.02176]
[1765116413628,0.003,88976.0,88975.0,0.02252188]
[1765116414851,0.003,88976.0,88975.0,0.40804487]
[1765116414994,0.003,88976.0,88975.0,0.43034487]
[1765116415198,0.003,88976.0,88975.0,0.44464487]
[1765116415630,0.003,88976.0,88975.0,0.44364487]
[1765116416079,0.01402,88991.0,88988.0,0.01123747]
[1765116416227,0.01402,88991.0,88989.0,0.01776]
[1765116416844,0.01402,88991.0,88989.0,0.24250687]
[1765116418108,0.04633,88990.0,88988.0,0.01123747]
[1765116418327,0.02777,88990.0,88989.0,0.01776]
[1765116418533,0.01402,88991.0,88989.0,0.08479798]
[1765116418684,0.01856,88990.0,88989.0,0.08479798]
[1765116418873,0.01856,88990.0,88989.0,0.08779798]
[1765116419075,0.06888225,88990.0,88989.0,0.08779798]
[1765116419293,0.06888225,88990.0,88989.0,0.08479798]
[1765116419294,0.04633,88990.0,88989.0,0.08479798]
[1765116419501,0.06194287,88990.0,88989.0,0.08779798]
[1765116419696,0.06294287,88990.0,88989.0,0.08779798]
[1765116420134,0.06194287,88990.0,88989.0,0.08779798]
[1765116421186,0.06494287,88990.0,88989.0,0.08779798]
[1765116421502,0.05094287,88990.0,88989.0,0.08479798]
[1765116421728,0.06894287,88990.0,88989.0,0.08779798]
[1765116421915,0.021,88990.0,88989.0,0.08813316]
[1765116422457,0.021,88990.0,88989.0,0.41113316]
[1765116422682,0.018,88990.0,88989.0,0.49595615]
[1765116423138,0.01402,89011.0,89010.0,0.22469385]
[1765116423345,0.01402,89011.0,89010.0,0.24245385]
[1765116424382,0.01441422,89011.0,89010.0,0.24245385]
[1765116425336,0.00039422,89011.0,89010.0,0.24245385]
[1765116425539,0.01539422,89011.0,89010.0,0.24545385]
[1765116425745,0.01639422,89011.0,89010.0,0.24545385]
[1765116426436,0.01639422,89011.0,89010.0,0.26775385]
[1765116431056,0.01639422,89011.0,89010.0,0.24545385]
[1765116431261,0.01639422,89011.0,89010.0,0.26775385]
[1765116432104,0.01639422,89011.0,89010.0,0.33027684]
[1765116432306,0.01639422,89011.0,89010.0,0.65327684]
[1765116433138,0.01539422,89011.0,89010.0,0.65327684]
[1765116433489,0.00039422,89011.0,89010.0,0.65027684]
[1765116433663,0.01239422,89011.0,89010.0,0.65327684]
[1765116435106,0.01239422,89011.0,89010.0,0.63097684]
[1765116435387,0.01239422,89011.0,89010.0,0.65327684]
[1765116435620,0.01239422,89011.0,89010.0,0.63097684]
[1765116436171,0.01239422,89011.0,89010.0,0.65327684]
[1765116438239,0.05777422,89011.0,89010.0,0.003]
[1765116438447,0.03001422,89011.0,89010.0,0.02076]
[1765116438665,0.01239422,89011.0,89010.0,0.04306]
[1765116438883,0.01239422,89011.0,89010.0,0.02076]
[1765116440485,0.01239422,89011.0,89010.0,0.10558299]
[1765116442115,0.01239422,89011.0,89010.0,0.08328299]
[1765116442335,0.01239422,89011.0,89010.0,0.40328299]
[1765116442336,0.00039422,89011.0,89010.0,0.40328299]
[1765116442544,0.00039422,89011.0,89010.0,0.40528299]
[1765116442866,0.01801422,89011.0,89010.0,0.34076]
[1765116443080,0.01039422,89011.0,89010.0,0.34276]
[1765116443270,0.01039422,89011.0,89010.0,0.34376]
[1765116443468,0.00039422,89011.0,89010.0,0.34176]
[1765116443674,0.04577422,89011.0,89010.0,0.22569385]
[1765116443887,0.04577422,89011.0,89010.0,0.24645385]
[1765116443888,0.05877422,89011.0,89010.0,0.24645385]
[1765116444426,0.03101422,89011.0,89010.0,0.24645385]
[1765116444627,0.05877422,89011.0,89010.0,0.24645385]
[1765116445039,0.04577422,89011.0,89010.0,0.24245385]
[1765116445439,0.04677422,89011.0,89010.0,0.24245385]
[1765116445663,0.01901422,89011.0,89010.0,0.24245385]
[1765116446004,0.04001422,89011.0,89010.0,0.24545385]
[1765116446390,0.02239422,89011.0,89010.0,0.24545385]
[1765116447804,0.04001422,89011.0,89010.0,0.24545385]
[1765116454948,0.05386422,89011.0,89010.0,0.24545385]
[1765116455921,0.08162422,89011.0,89010.0,0.24545385]
[1765116456440,0.30631555,89011.0,89010.0,0.003]
[1765116456646,0.30631555,89011.0,89010.0,0.02076]
[1765116457904,0.08162422,89011.0,89010.0,0.02076]
[1765116458039,0.30631555,89011.0,89010.0,0.02076]
[1765116458457,0.08162422,89011.0,89010.0,0.02076]
[1765116459061,0.05386422,89011.0,89010.0,0.24545385]
[1765116459466,0.02239422,89011.0,89010.0,0.65327684]
[1765116459972,0.02239422,89011.0,89010.0,0.7138287]
[1765116460404,0.02139422,89011.0,89010.0,0.7138287]
[1765116460769,0.00039422,89011.0,89010.0,0.65227684]
[1765116462139,0.01385,89023.0,89022.0,0.22466356]
[1765116462140,0.00924422,89023.0,89022.0,0.22466356]
[1765116462342,0.00924422,89023.0,89022.0,0.24242356]
[1765116463456,0.03024422,89023.0,89022.0,0.24542356]
[1765116464026,0.021,89023.0,89022.0,0.24542356]
[1765116464556,0.02107966,89023.0,89022.0,0.26772356]
[1765116470677,0.05295966,89023.0,89022.0,0.24542356]
[1765116470883,0.08046966,89023.0,89022.0,0.24542356]
[1765116471982,0.05295966,89023.0,89022.0,0.24542356]
[1765116472189,0.03473966,89023.0,89022.0,0.24542356]
[1765116472909,0.02107966,89023.0,89022.0,0.24542356]
[1765116473106,0.02107966,89023.0,89022.0,0.26772356]
[1765116473918,0.02107966,89023.0,89022.0,0.56842356]
[1765116474120,0.02107966,89023.0,89022.0,0.63108505]
[1765116474538,0.02107966,89023.0,89022.0,0.59072356]
[1765116475657,7.966e-05,89023.0,89022.0,0.58772356]
[1765116476071,0.02007966,89023.0,89022.0,0.59072356]
[1765116477155,0.02007966,89023.0,89022.0,0.56842356]
[1765116477356,0.02007966,89023.0,89022.0,0.59072356]
[1765116481843,0.07768966,89023.0,89022.0,0.56842356]
[1765116482042,0.07768966,89023.0,89022.0,0.2677848]
[1765116482244,0.07768966,89023.0,89022.0,0.24542356]
[1765116482634,0.07768966,89023.0,89022.0,0.003]
[1765116483262,0.07768966,89023.0,89022.0,0.02076]
[1765116483466,0.07930253,89023.0,89022.0,0.02076]
[1765116485233,0.08030253,89023.0,89022.0,0.02076]
[1765116485444,0.08030253,89023.0,89009.0,0.07827279]
[1765116485445,0.0112338,89017.0,89014.0,0.01776]
[1765116485691,0.2246787,89016.0,89014.0,0.01776]
[1765116485891,0.03021,89015.0,89014.0,0.01776]
[1765116486099,0.05761,89015.0,89014.0,0.01776]
[1765116486305,0.05922287,89015.0,89014.0,0.01776]
[1765116487141,0.05922287,89015.0,89014.0,0.02076]
[1765116487332,0.05922287,89015.0,89014.0,0.01776]
[1765116488205,0.05722287,89015.0,89014.0,0.01776]
[1765116488654,0.02821,89015.0,89014.0,0.01776]
[1765116488873,0.01939,89015.0,89014.0,0.02076]
[1765116489084,0.01939,89015.0,89014.0,0.01776]
[1765116489085,0.01339,89015.0,89014.0,0.01776]
[1765116489534,0.02539,89015.0,89014.0,0.02076]
[1765116489750,0.01339,89015.0,89014.0,0.01776]
[1765116489951,0.01439,89015.0,89014.0,0.01776]
[1765116490156,0.02339,89015.0,89014.0,0.02076]
[1765116491016,0.01,89015.0,89014.0,0.02076]
[1765116491673,0.01,89015.0,89014.0,0.04306]
[1765116491913,0.01,89015.0,89014.0,0.02076]
[1765116493378,0.0523,89015.0,89014.0,0.02076]
[1765116497736,0.02735,89015.0,89014.0,0.02076]
[1765116498386,0.01,89015.0,89014.0,0.02076]
[1765116500210,0.01,89015.0,89014.0,0.04306]
[1765116500650,0.01,89015.0,89014.0,0.02076]
[1765116500906,0.01,89015.0,89014.0,0.04306]
[1765116501545,0.01,89015.0,89014.0,0.10558299]
[1765116502417,0.01,89015.0,89014.0,0.10258299]
[1765116502418,0.001,89015.0,89014.0,0.10258299]
[1765116502631,0.001,89015.0,89014.0,0.42558299]
[1765116502859,7.966e-05,89023.0,89020.0,0.03353343]
[1765116503074,7.966e-05,89023.0,89022.0,0.22466356]
[1765116503956,0.01368966,89023.0,89022.0,0.22466356]
[1765116504123,0.01368966,89023.0,89020.0,0.23590012]
[1765116504124,0.05598966,89023.0,89020.0,0.23590012]
[1765116504293,0.01735,89021.0,89020.0,0.55890012]
[1765116504722,0.0423,89021.0,89020.0,0.55890012]
[1765116505129,0.0423,89021.0,89020.0,0.55990012]
[1765116505860,0.0423,89021.0,89020.0,0.55890012]
[1765116506062,0.0423,89021.0,89020.0,0.23690012]
[1765116506238,0.0493,89021.0,89020.0,0.23990012]
[1765116506441,0.0423,89021.0,89020.0,0.23590012]
[1765116506835,0.0533,89021.0,89020.0,0.01423343]
[1765116507596,0.05491287,89021.0,89020.0,0.003]
[1765116507729,0.05491287,89021.0,89020.0,0.02076]
[1765116513048,0.05491287,89021.0,89020.0,0.003]
[1765116518284,0.02996287,89021.0,89020.0,0.003]
[1765116518511,0.05491287,89021.0,89020.0,0.003]
[1765116522648,0.07746512,89021.0,89020.0,0.003]
[1765116522821,0.05491287,89021.0,89020.0,0.003]
[1765116523846,0.01261287,89021.0,89020.0,0.003]
[1765116524164,0.011,89021.0,89020.0,0.003]
[1765116526650,0.011,89021.0,89020.0,0.04332892]
[1765116526819,0.011,89021.0,89020.0,0.05693892]
[1765116538126,0.02398,89021.0,89020.0,0.05693892]
[1765116542387,0.011,89021.0,89020.0,0.05693892]
[1765116544086,0.011,89021.0,89020.0,0.01661]
[1765116544288,0.011,89021.0,89020.0,0.03891]
[1765116545366,0.011,89021.0,89020.0,0.01661]
[1765116545575,0.04126,89021.0,89020.0,0.01661]
[1765116545784,0.06665,89021.0,89020.0,0.01661]
[1765116546250,0.06665,89021.0,89020.0,0.07473754]
[1765116546462,0.06665,89021.0,89020.0,0.01661]
[1765116546585,0.06665,89021.0,89020.0,0.003]
[1765116546586,0.06826287,89021.0,89020.0,0.003]
[1765116550177,0.09046685,89021.0,89020.0,0.003]
[1765116550610,0.06826287,89021.0,89020.0,0.003]
[1765116551122,0.06826287,89021.0,89009.0,0.01123481]
[1765116551123,0.01123444,89012.0,89009.0,0.01123481]
[1765116551363,0.03026,89010.0,89009.0,0.01123481]
[1765116551679,0.05574,89010.0,89009.0,0.01123481]
[1765116551881,0.05574,89010.0,89008.0,0.01776]
[1765116552123,0.04225,89009.0,89008.0,0.01776]
[1765116552472,0.01298,89010.0,89009.0,0.22469637]
[1765116552904,0.01298,89012.0,89009.0,0.23593118]
[1765116553646,0.003,89010.0,89009.0,0.23993118]
[1765116553909,0.01298,89012.0,89009.0,0.23593118]
[1765116554409,0.01598,89012.0,89009.0,0.23993118]
[1765116554618,0.01298,89012.0,89009.0,0.23593118]
[1765116554995,0.01977,89010.0,89009.0,0.23993118]
[1765116555412,0.01677,89010.0,89009.0,0.23593118]
[1765116555621,0.04225,89010.0,89009.0,0.23593118]
[1765116556459,0.01298,89021.0,89016.0,0.01123393]
[1765116556689,0.01298,89021.0,89018.0,0.29171164]
[1765116556828,0.01298,89021.0,89018.0,0.30947164]
[1765116557167,0.02878,89019.0,89018.0,0.30947164]
[1765116557324,0.05426,89019.0,89018.0,0.30947164]
[1765116557935,0.06026,89019.0,89018.0,0.31247164]
[1765116558141,0.05426,89019.0,89018.0,0.30947164]
[1765116558542,0.05426,89019.0,89018.0,0.31347164]
[1765116558543,0.05726,89019.0,89018.0,0.31347164]
[1765116559378,0.05826,89019.0,89018.0,0.31347164]
[1765116560205,0.03178,89019.0,89018.0,0.31347164]
[1765116560408,0.01501,89019.0,89018.0,0.31347164]
[1765116561828,0.03178,89019.0,89018.0,0.08879798]
[1765116562030,0.05726,89019.0,89018.0,0.08879798]
[1765116564118,0.03178,89019.0,89018.0,0.31347164]
[1765116564318,0.03146008,89019.0,89018.0,0.31347164]
[1765116565513,0.05694008,89019.0,89018.0,0.31347164]
[1765116565739,0.05694008,89019.0,89018.0,0.08879798]
[1765116568176,0.05694008,89019.0,89018.0,0.31347164]
[1765116569381,0.03146008,89019.0,89018.0,0.31347164]
[1765116570089,0.01469008,89019.0,89018.0,0.31347164]
[1765116570294,0.03146008,89019.0,89018.0,0.31347164]
[1765116572833,0.03146008,89019.0,89018.0,0.08879798]
[1765116573044,0.05694008,89019.0,89018.0,0.08879798]
[1765116574471,0.28322408,89019.0,89018.0,0.08879798]
[1765116575408,0.05855295,89019.0,89018.0,0.08879798]
[1765116578239,0.03307295,89019.0,89018.0,0.08879798]
[1765116578591,0.05855295,89019.0,89018.0,0.08879798]
[1765116579608,0.05855295,89019.0,89018.0,0.07103798]
[1765116580213,0.05855295,89019.0,89018.0,0.004]
[1765116580214,0.08075693,89019.0,89018.0,0.004]
[1765116581183,0.08175693,89019.0,89018.0,0.004]
[1765116582207,0.01123469,89010.0,89007.0,0.02899507]
[1765116582407,0.02752,89008.0,89007.0,0.01776]
[1765116582812,0.05247,89008.0,89007.0,0.01776]
[1765116584228,0.05547,89008.0,89007.0,0.02076]
[1765116585008,0.05647,89008.0,89007.0,0.02076]
[1765116586409,0.2811689,89008.0,89007.0,0.02076]
[1765116586747,0.2811689,89008.0,89007.0,0.003]
[1765116586933,0.30337288,89008.0,89007.0,0.003]
[1765116587300,0.30337288,89008.0,88992.0,0.00024376]
[1765116587301,0.22473677,88993.0,88992.0,0.00024376]
[1765116587598,0.25225677,88993.0,88992.0,0.00024376]
[1765116587823,0.27720677,88993.0,88992.0,0.00024376]
[1765116588413,0.29941075,88993.0,88992.0,0.00024376]
[1765116589246,0.27720677,88993.0,88992.0,0.00024376]
[1765116589429,0.30341075,88993.0,88992.0,0.00024376]
[1765116590017,0.30441075,88993.0,88992.0,0.00024376]
[1765116590271,0.28220677,88993.0,88992.0,0.00024376]
[1765116590483,0.30441075,88993.0,88992.0,0.00024376]
[1765116590691,0.28220677,88993.0,88992.0,0.00024376]
[1765116590898,0.30441075,88993.0,88992.0,0.00024376]
[1765116593834,0.28220677,88993.0,88992.0,0.00024376]
[1765116594013,0.30441075,88993.0,88992.0,0.00024376]
[1765116595334,0.38204539,88993.0,88992.0,0.00024376]
[1765116600269,0.01123999,88968.0,88965.0,0.06703798]
[1765116600487,0.02687,88966.0,88965.0,0.06703798]
[1765116600892,0.05149,88966.0,88965.0,0.06703798]
[1765116601306,0.02687,88966.0,88965.0,0.06703798]
[1765116601718,0.0115,88966.0,88965.0,0.06703798]
[1765116601902,0.0155,88966.0,88965.0,0.06703798]
[1765116602051,0.03087,88966.0,88965.0,0.06703798]
[1765116603022,0.0155,88966.0,88965.0,0.06703798]
[1765116603302,0.05549,88966.0,88965.0,0.06703798]
[1765116604494,0.05710287,88966.0,88965.0,0.06703798]
[1765116604967,0.05310287,88966.0,88965.0,0.06703798]
[1765116605153,0.05310287,88966.0,88962.0,0.01776]
[1765116605154,0.22481256,88963.0,88962.0,0.01776]
[1765116605300,0.24018256,88963.0,88962.0,0.01776]
[1765116605493,0.26641543,88963.0,88962.0,0.01776]
[1765116605945,0.00161287,88963.0,88962.0,0.01776]
[1765116606145,0.0125,88966.0,88963.0,0.23605294]
[1765116606376,0.0125,88966.0,88965.0,0.06703798]
[1765116606618,0.0125,88966.0,88965.0,0.29266844]
[1765116606842,0.05149,88966.0,88965.0,0.29266844]
[1765116607479,0.0115,88966.0,88965.0,0.29266844]
[1765116607679,0.0115,88970.0,88967.0,0.01124012]
[1765116607890,0.0115,88970.0,88969.0,0.2247974]
[1765116608090,0.0115,88970.0,88969.0,0.22549841]
[1765116608423,0.0115,88970.0,88969.0,0.22589263]
[1765116608927,0.0115,88977.0,88975.0,0.22478164]
[1765116609150,0.0115,88977.0,88974.0,0.02899923]
[1765116609398,0.0115,88977.0,88974.0,0.25378273]
[1765116611170,0.0155,88977.0,88974.0,0.25378273]
[1765116612157,0.01659,88975.0,88974.0,0.25378273]
[1765116612572,0.04036,88975.0,88974.0,0.02899923]
[1765116614130,0.04036,88975.0,88974.0,0.01776]
[1765116614401,0.04436,88975.0,88974.0,0.01776]
[1765116614701,0.04436,88975.0,88974.0,0.01830858]
[1765116615273,0.04036,88975.0,88974.0,0.01830858]
[1765116615476,0.04436,88975.0,88974.0,0.00054858]
[1765116615672,0.06852512,88975.0,88974.0,0.00054858]
[1765116615970,0.0907291,88975.0,88974.0,0.00054858]
[1765116616146,0.0917291,88975.0,88974.0,0.00054858]
[1765116616530,0.0907291,88975.0,88974.0,0.00054858]
[1765116616975,0.0887291,88975.0,88974.0,0.00054858]
[1765116617179,0.09922362,88975.0,88974.0,0.00054858]
[1765116617376,0.19034727,88975.0,88974.0,0.00054858]
[1765116617580,0.51334727,88975.0,88974.0,0.00054858]
[1765116617998,0.51334727,88975.0,88969.0,0.00039422]
[1765116617999,0.24699885,88970.0,88969.0,0.00039422]
[1765116618250,0.24699885,88970.0,88930.0,0.0002]
[1765116618251,0.01124429,88934.0,88930.0,0.0002]
[1765116618448,0.01659,88932.0,88930.0,0.0002]
[1765116618867,0.04036,88932.0,88930.0,0.0002]
[1765116619290,0.01229,88936.0,88935.0,0.22488334]
[1765116619483,0.01229,88936.0,88933.0,0.01124441]
[1765116620236,0.04012429,88934.0,88930.0,0.0002]
[1765116620434,0.02059,88932.0,88930.0,0.0002]
[1765116620845,0.04036,88932.0,88930.0,0.0002]
[1765116622303,0.04436,88932.0,88930.0,0.0002]
[1765116622508,0.004,88932.0,88930.0,0.22509551]
[1765116622941,0.04436,88932.0,88930.0,0.22509551]
[1765116623183,0.02059,88932.0,88931.0,0.06203798]
[1765116625209,0.004,88932.0,88931.0,0.06203798]
[1765116625573,0.004,88932.0,88931.0,0.44887225]
[1765116626552,0.02059,88932.0,88931.0,0.44887225]
[1765116626967,0.004,88932.0,88931.0,0.44887225]
[1765116627131,0.02059,88932.0,88931.0,0.38634926]
[1765116627311,0.02059,88932.0,88931.0,0.40410926]
[1765116627522,0.04436,88932.0,88931.0,0.08110926]
[1765116628932,0.02059,88932.0,88931.0,0.08110926]
[1765116631571,0.004,88932.0,88931.0,0.08110926]
[1765116631785,0.004,88932.0,88931.0,0.10340926]
[1765116633239,0.004,88932.0,88931.0,0.16593225]
[1765116633674,0.004,88932.0,88931.0,0.08110926]
[1765116633675,0.02059,88932.0,88931.0,0.08110926]
[1765116633925,0.004,88932.0,88931.0,0.06334926]
[1765116634212,0.01229,88939.0,88934.0,0.01124429]
[1765116634213,0.02353366,88939.0,88934.0,0.01124429]
[1765116634462,0.02353366,88939.0,88935.0,0.01124416]
[1765116634672,0.04730366,88939.0,88938.0,0.00109773]
[1765116634897,0.03606,88939.0,88938.0,0.00109773]
[1765116635122,0.01229,88939.0,88938.0,0.00109773]
[1765116635369,0.23609966,88946.0,88941.0,0.0112434]
[1765116635587,0.0112429,88945.0,88942.0,0.02900328]
[1765116635809,0.01124277,88946.0,88942.0,0.02900328]
[1765116636055,0.01124239,88949.0,88945.0,0.0112429]
[1765116636287,0.23609353,88948.0,88944.0,0.01124302]
[1765116636711,0.25269095,88945.0,88942.0,0.01776]
[1765116636885,0.24145311,88943.0,88942.0,0.01776]
[1765116637104,0.22488125,88936.0,88934.0,0.001]
[1765116637326,0.22488125,88936.0,88931.0,0.06203798]
[1765116637327,0.23613016,88934.0,88931.0,0.06203798]
[1765116637487,0.22489345,88931.0,88930.0,0.0002]
[1765116637700,0.01659,88931.0,88930.0,0.01796]
[1765116638094,0.04036,88931.0,88930.0,0.01796]
[1765116638520,0.04036,88931.0,88930.0,0.0003183]
[1765116638766,0.04036,88931.0,88930.0,0.0180783]
[1765116639369,0.04036,88931.0,88930.0,0.0190783]
[1765116640665,0.04636,88931.0,88930.0,0.0220783]
[1765116640869,0.02259,88931.0,88930.0,0.0220783]
[1765116641296,0.006,88931.0,88930.0,0.02342009]
[1765116641499,0.006,88931.0,88930.0,0.04572009]
[1765116641711,0.006,88931.0,88930.0,0.02342009]
[1765116642342,0.006,88931.0,88930.0,0.04572009]
[1765116642890,0.006,88931.0,88930.0,0.43124308]
[1765116644083,0.006,88931.0,88930.0,1.39337108]
[1765116644314,0.006,88931.0,88930.0,1.39237108]
[1765116644770,0.006,88931.0,88930.0,1.39437108]
[1765116645133,0.006,88931.0,88930.0,1.39237108]
[1765116645339,0.006,88931.0,88930.0,1.18626408]
[1765116645539,0.02283974,88970.0,88961.0,0.01124088]
[1765116645739,0.02283974,88970.0,88969.0,0.07308996]
[1765116645740,0.01321287,88970.0,88969.0,0.07308996]
[1765116646148,0.01321287,88970.0,88969.0,0.29788736]
[1765116646355,0.00161287,88970.0,88969.0,0.29788736]
[1765116646721,0.00161287,88970.0,88969.0,0.29797175]
[1765116646939,0.01123885,88977.0,88974.0,0.01123923]
[1765116647124,0.01123885,88977.0,88975.0,0.01776]
[1765116647333,0.02283848,88980.0,88979.0,0.22477213]
[1765116647334,0.0116,88980.0,88979.0,0.22477213]
[1765116647539,0.0116,88980.0,88977.0,0.01123885]
[1765116647961,0.0116,88980.0,88978.0,0.22477466]
[1765116648397,0.0116,88980.0,88977.0,0.01123885]
[1765116648831,0.0266,88980.0,88979.0,0.003]
[1765116649059,0.0126,88980.0,88978.0,0.22477466]
[1765116649493,0.01514,88979.0,88978.0,0.003]